fUST/lending_fUST_20251018
["ID","MTS","AMOUNT","RATE_DAILY","PERIOD"]
[391675525,1760725842592,-500.0,0.00030136,5]
[391675527,1760725842601,-500.0,0.00030136,5]
[391675529,1760725842611,-500.0,0.00030136,5]
[391675531,1760725842620,-500.0,0.00030136,5]
[391675533,1760725842628,-503.11624523,0.00030136,5]
[391675535,1760725842638,-263.69901708,0.00030136,5]
[391675537,1760725842647,-241.11020382,0.00030136,5]
[391675539,1760725842656,-510.65291596,0.00030136,5]
[391675541,1760725842665,-606.01828906,0.00030136,5]
[391675543,1760725842674,-705.81,0.00030136,5]
[391675545,1760725842684,-500.0,0.00030136,5]
[391675547,1760725842693,-500.0,0.00030136,5]
[391675549,1760725842702,-500.0,0.00030136,5]
[391675551,1760725842711,-500.0,0.00030136,5]
[391675553,1760725842720,-1000.0,0.00030136,2]
[391675554,1760725842729,-500.0,0.00030136,5]
[391675556,1760725842739,-542.92855219,0.00030136,5]
[391675558,1760725842748,-500.0,0.00030136,5]
[391675560,1760725842757,-500.0,0.00030136,5]
[391675562,1760725842766,-501.61164426,0.00030136,5]
[391675564,1760725842776,-500.0,0.00030136,5]
[391675566,1760725842786,-500.0,0.00030136,5]
[391675568,1760725842795,-500.0,0.00030136,5]
[391675570,1760725842804,-500.0,0.00030136,5]
[391675572,1760725842813,-500.0,0.00030136,5]
[391675574,1760725842822,-500.0,0.00030136,5]
[391675576,1760725842831,-500.0,0.00030136,5]
[391675578,1760725842841,-500.0,0.00030136,5]
[391675580,1760725842850,-516.43,0.00030136,5]
[391675582,1760725842860,-1990.39,0.00030136,5]
[391675584,1760725842869,-1990.39,0.00030136,5]
[391675586,1760725842878,-1990.39,0.00030136,5]
[391675588,1760725842887,-1990.39,0.00030136,5]
[391675590,1760725842896,-1990.39,0.00030136,5]
[391675592,1760725842906,-1990.39,0.00030136,5]
[391675594,1760725842915,-1990.39,0.00030136,5]
[391675596,1760725842924,-1990.39,0.00030136,5]
[391675598,1760725842933,-1990.39,0.00030136,5]
[391675600,1760725842942,-1990.39,0.00030136,5]
[391675602,1760725842951,-1990.39,0.00030136,5]
[391675604,1760725842961,-1990.39,0.00030136,5]
[391675606,1760725842970,-1990.39,0.00030136,5]
[391675608,1760725842981,-1990.39,0.00030136,5]
[391675610,1760725842990,-1990.39,0.00030136,5]
[391675612,1760725842999,-500.0,0.00030136,5]
[391675614,1760725843010,-1990.39,0.00030136,5]
[391675616,1760725843019,-1990.39,0.00030136,5]
[391675618,1760725843028,-1990.39,0.00030136,5]
[391675620,1760725843037,-1990.39,0.00030136,5]
[391675622,1760725843047,-1990.39,0.00030136,5]
[391675624,1760725843056,-1990.39,0.00030136,5]
[391675626,1760725843065,-1990.39,0.00030136,5]
[391675629,1760725843075,-1990.39,0.00030136,5]
[391675632,1760725843084,-1990.45104253,0.00030136,5]
[391675634,1760725843094,-500.0,0.00030136,2]
[391675636,1760725843104,-500.0,0.00030136,5]
[391675638,1760725843115,-506.10920059,0.00030136,5]
[391675640,1760725843124,-1000.0,0.00030136,120]
[391675642,1760725843134,-500.0,0.00030136,5]
[391675644,1760725843143,-500.0,0.00030136,5]
[391675646,1760725843153,-500.0,0.00030136,5]
[391675649,1760725843162,-830.69,0.00030136,5]
[391675650,1760725843172,-500.0,0.00030136,2]
[391675652,1760725843181,-500.0,0.00030136,2]
[391675655,1760725843193,-500.0,0.00030136,2]
[391675657,1760725843203,-516.72171874,0.00030136,2]
[391675659,1760725843213,-500.0,0.00030136,5]
[391675661,1760725843223,-500.0,0.00030136,5]
[391675663,1760725843234,-500.0,0.00030136,5]
[391675665,1760725843246,-500.0,0.00030136,5]
[391675667,1760725843255,-337.71091664,0.00030136,5]
[391675669,1760725843264,-500.0,0.00030136,5]
[391675670,1760725843273,-500.0,0.00030136,5]
[391675673,1760725843284,-500.0,0.00030136,5]
[391675675,1760725843294,-500.0,0.00030136,5]
[391675677,1760725843304,-200.0,0.00030136,10]
[391675679,1760725843316,-200.0,0.00030136,10]
[391675681,1760725843325,-206.128437,0.00030136,10]
[391675683,1760725843335,-1425.34,0.00030136,5]
[391675684,1760725843344,-500.0,0.00030136,5]
[391675687,1760725843355,-683.45,0.00030136,3]
[391675689,1760725843364,-500.0,0.00030136,5]
[391675691,1760725843375,-590.77,0.00030136,5]
[391675693,1760725843384,-500.0,0.00030136,5]
[391675695,1760725843394,-500.0,0.00030136,5]
[391675697,1760725843403,-500.0,0.00030136,5]
[391675699,1760725843413,-459.24693405,0.00030136,5]
[391675701,1760725843422,-500.0,0.00030136,5]
[391675703,1760725843432,-503.13327164,0.00030136,5]
[391675705,1760725843442,-500.0,0.00030136,5]
[391675707,1760725843452,-500.0,0.00030136,5]
[391675709,1760725843462,-622.67,0.00030136,5]
[391675711,1760725843472,-562.64,0.00030136,5]
[391675713,1760725843482,-1219.05,0.00030136,5]
[391675715,1760725843492,-506.54743112,0.00030136,5]
[391675717,1760725843502,-452.3769506,0.00030136,5]
[391675719,1760725843513,-569.00893382,0.00030136,5]
[391675721,1760725843523,-716.27,0.00030136,5]
[391675723,1760725843533,-500.0,0.00030136,5]
[391675725,1760725843542,-500.0,0.00030136,5]
[391675728,1760725843553,-500.0,0.00030136,5]
[391675730,1760725843563,-500.0,0.00030136,5]
[391675732,1760725843572,-510.80978908,0.00030136,5]
[391675733,1760725843581,-500.0,0.00030136,5]
[391675736,1760725843591,-500.0,0.00030136,5]
[391675738,1760725843601,-543.47648462,0.00030136,5]
[391675740,1760725843610,-500.0,0.00030136,5]
[391675742,1760725843621,-521.99446907,0.00030136,5]
[391675744,1760725843630,-500.0,0.00030136,5]
[391675746,1760725843639,-472.63606574,0.00030136,5]
[391675748,1760725843649,-500.9763445,0.00030136,5]
[391675750,1760725843659,-647.06,0.00030136,5]
[391675752,1760725843668,-500.77759847,0.00030136,5]
[391675754,1760725843681,-501.03856721,0.00030136,5]
[391675755,1760725843691,-500.79,0.00030136,5]
[391675758,1760725843701,-500.0,0.00030136,5]
[391675759,1760725843710,-500.0,0.00030136,5]
[391675762,1760725843720,-500.0,0.00030136,5]
[391675764,1760725843729,-500.0,0.00030136,5]
[391675766,1760725843739,-500.0,0.00030136,5]
[391675768,1760725843749,-500.0,0.00030136,5]
[391675770,1760725843759,-500.0,0.00030136,5]
[391675772,1760725843768,-500.0,0.00030136,5]
[391675774,1760725843778,-500.59605135,0.00030136,5]
[391675776,1760725843787,-379.62854608,0.00030136,5]
[391675778,1760725843797,-505.63821842,0.00030136,5]
[391675780,1760725843806,-500.0,0.00030136,5]
[391675782,1760725843815,-502.95776667,0.00030136,5]
[391675784,1760725843824,-500.0,0.00030136,5]
[391675786,1760725843833,-504.55901246,0.00030136,5]
[391675788,1760725843843,-500.0,0.00030136,2]
[391675790,1760725843852,-501.55698655,0.00030136,5]
[391675792,1760725843861,-517.03162506,0.00030136,5]
[391675794,1760725843870,-502.00867244,0.00030136,5]
[391675796,1760725843880,-500.0,0.00030136,5]
[391675798,1760725843889,-422.42901428,0.00030136,5]
[391675800,1760725843898,-502.13208655,0.00030136,5]
[391675802,1760725843908,-500.0,0.00030137,2]
[391675804,1760725843917,-500.0,0.00030137,2]
[391675806,1760725843926,-500.0,0.00030137,2]
[391675808,1760725843937,-500.0,0.00030137,2]
[391675810,1760725843946,-500.0,0.00030137,2]
[391675812,1760725843956,-500.0,0.00030137,2]
[391675814,1760725843965,-500.0,0.00030137,2]
[391675816,1760725843974,-500.0,0.00030137,2]
[391675818,1760725843983,-500.0,0.00030137,2]
[391675820,1760725843993,-500.0,0.00030137,2]
[391675821,1760725844001,-500.0,0.00030137,2]
[391675822,1760725844011,-500.0,0.00030137,2]
[391675823,1760725844021,-500.0,0.00030137,2]
[391675824,1760725844030,-500.0,0.00030137,2]
[391675826,1760725844040,-500.0,0.00030137,2]
[391675828,1760725844049,-500.0,0.00030137,2]
[391675830,1760725844058,-500.0,0.00030137,2]
[391675832,1760725844068,-500.0,0.00030137,2]
[391675834,1760725844077,-500.0,0.00030137,2]
[391675836,1760725844086,-500.0,0.00030137,2]
[391675838,1760725844095,-500.0,0.00030137,2]
[391675840,1760725844104,-500.0,0.00030137,2]
[391675842,1760725844113,-500.0,0.00030137,2]
[391675844,1760725844124,-500.0,0.00030137,2]
[391675846,1760725844133,-500.0,0.00030137,2]
[391675848,1760725844142,-500.0,0.00030137,2]
[391675850,1760725844152,-500.0,0.00030137,2]
[391675852,1760725844162,-500.0,0.00030137,2]
[391675854,1760725844171,-500.0,0.00030137,2]
[391675856,1760725844181,-500.0,0.00030137,2]
[391675858,1760725844192,-500.0,0.00030137,2]
[391675860,1760725844202,-500.0,0.00030137,2]
[391675862,1760725844211,-500.0,0.00030137,2]
[391675864,1760725844220,-500.0,0.00030137,2]
[391675866,1760725844234,-500.0,0.00030137,2]
[391675869,1760725844244,-500.0,0.00030137,2]
[391675871,1760725844253,-500.0,0.00030137,2]
[391675873,1760725844263,-500.0,0.00030137,2]
[391675875,1760725844274,-500.0,0.00030137,2]
[391675877,1760725844284,-500.0,0.00030137,2]
[391675879,1760725844294,-500.0,0.00030137,2]
[391675881,1760725844305,-500.0,0.00030137,2]
[391675883,1760725844315,-500.0,0.00030137,2]
[391675885,1760725844326,-500.0,0.00030137,2]
[391675887,1760725844336,-500.0,0.00030137,2]
[391675889,1760725844346,-500.0,0.00030137,2]
[391675891,1760725844356,-500.0,0.00030137,2]
[391675893,1760725844366,-500.0,0.00030137,2]
[391675895,1760725844376,-500.0,0.00030137,2]
[391675897,1760725844385,-500.0,0.00030137,2]
[391675899,1760725844394,-500.0,0.00030137,2]
[391675902,1760725844404,-500.0,0.00030137,2]
[391675904,1760725844414,-500.0,0.00030137,2]
[391675906,1760725844424,-500.0,0.00030137,2]
[391675908,1760725844433,-500.0,0.00030137,2]
[391675910,1760725844444,-500.0,0.00030137,2]
[391675912,1760725844453,-500.0,0.00030137,2]
[391675914,1760725844463,-500.0,0.00030137,2]
[391675916,1760725844472,-510.71150409,0.00030137,2]
[391675918,1760725844482,-500.0,0.00030137,2]
[391675920,1760725844493,-500.0,0.00030137,2]
[391675922,1760725844502,-500.0,0.00030137,2]
[391675924,1760725844511,-500.0,0.00030137,2]
[391675926,1760725844521,-500.0,0.00030137,2]
[391675928,1760725844530,-500.0,0.00030137,2]
[391675930,1760725844540,-500.0,0.00030137,2]
[391675932,1760725844549,-500.0,0.00030137,2]
[391675934,1760725844559,-500.0,0.00030137,2]
[391675936,1760725844568,-500.0,0.00030137,2]
[391675938,1760725844578,-500.0,0.00030137,2]
[391675940,1760725844587,-500.0,0.00030137,2]
[391675942,1760725844596,-500.0,0.00030137,2]
[391675944,1760725844606,-500.0,0.00030137,2]
[391675945,1760725844615,-500.0,0.00030137,2]
[391675948,1760725844624,-500.0,0.00030137,2]
[391675950,1760725844634,-500.0,0.00030137,2]
[391675952,1760725844643,-200.0,0.00030137,2]
[391675954,1760725844652,-500.0,0.00030137,2]
[391675956,1760725844662,-500.0,0.00030137,2]
[391675958,1760725844671,-500.0,0.00030137,2]
[391675960,1760725844682,-240.748734,0.00030146,20]
[391675962,1760725844694,-151.591364,0.00030146,20]
[391675964,1760725844703,-269.97571965,0.0003015,120]
[391675966,1760725844712,-166.84977167,0.00030163,2]
[391675968,1760725844722,-500.0,0.00030173,5]
[391675970,1760725844732,-505.98908118,0.00030173,5]
[391675972,1760725844741,-500.0,0.00030173,5]
[391675974,1760725844750,-500.0,0.00030173,2]
[391675976,1760725844760,-500.0,0.00030173,5]
[391675978,1760725844770,-500.0,0.00030173,4]
[391675980,1760725844779,-427.21391195,0.00030173,5]
[391675982,1760725844789,-503.73491185,0.00030173,5]
[391675984,1760725844798,-500.0,0.00030173,5]
[391675986,1760725844807,-500.0,0.00030173,5]
[391675988,1760725844817,-500.0,0.00030173,5]
[391675990,1760725844826,-500.0,0.00030173,5]
[391675992,1760725844836,-500.0,0.00030173,5]
[391675995,1760725844846,-500.0,0.00030173,5]
[391675997,1760725844856,-250.67814024,0.00030173,2]
[391675999,1760725844865,-500.0,0.00030173,5]
[391676001,1760725844875,-500.0,0.00030173,5]
[391676003,1760725844884,-500.0,0.00030173,5]
[391676005,1760725844893,-2000.0,0.00030194,5]
[391676007,1760725844902,-1069.33,0.000302,2]
[391676009,1760725844912,-1959.71130037,0.00030235,2]
[391676011,1760725844922,-4031.58,0.00030257,4]
[391676013,1760725844932,-199.0,0.00030258,17]
[391676015,1760725844942,-500.0,0.00030259,10]
[391676017,1760725844951,-500.0,0.00030273,2]
[391676019,1760725844961,-466.48180986,0.00030284,5]
[391676021,1760725844971,-2000.0,0.00030284,5]
[391676023,1760725844980,-700.1733254,0.00030312,5]
[391676025,1760725844990,-150.0,0.000304,10]
[391676027,1760725844999,-166.84977167,0.000304,2]
[391676029,1760725845008,-500.0,0.0003041,5]
[391676031,1760725845017,-500.0,0.0003041,5]
[391676033,1760725845027,-512.03240056,0.0003041,5]
[391676035,1760725845037,-501.22185501,0.0003041,5]
[391676037,1760725845046,-502.21725024,0.0003041,5]
[391676039,1760725845056,-502.0166949,0.0003041,5]
[391676041,1760725845065,-502.50973817,0.0003041,5]
[391676043,1760725845075,-500.0,0.0003041,5]
[391676045,1760725845085,-500.0,0.0003041,5]
[391676047,1760725845094,-500.0,0.0003041,5]
[391676050,1760725845104,-509.36890501,0.0003041,5]
[391676052,1760725845114,-500.0,0.0003041,5]
[391676054,1760725845123,-500.0,0.0003041,5]
[391676056,1760725845133,-500.0,0.0003041,5]
[391676058,1760725845143,-509.66348862,0.0003041,5]
[391676060,1760725845152,-653.4,0.0003041,5]
[391676062,1760725845162,-500.0,0.0003041,5]
[391676064,1760725845171,-380.92883852,0.0003041,5]
[391676066,1760725845181,-500.0,0.0003041,5]
[391676068,1760725845191,-500.0,0.0003041,5]
[391676070,1760725845200,-500.0,0.0003041,5]
[391676072,1760725845209,-500.0,0.0003041,2]
[391676074,1760725845218,-502.68459445,0.0003041,5]
[391676076,1760725845227,-500.0,0.0003041,5]
[391676078,1760725845240,-500.0,0.0003041,5]
[391676080,1760725845249,-501.36093495,0.0003041,5]
[391676082,1760725845258,-500.0,0.0003041,5]
[391676084,1760725845268,-500.0,0.0003041,5]
[391676086,1760725845278,-500.0,0.0003041,5]
[391676088,1760725845288,-500.0,0.0003041,5]
[391676090,1760725845298,-500.0,0.0003041,5]
[391676092,1760725845309,-500.0,0.0003041,5]
[391676094,1760725845319,-500.0,0.0003041,5]
[391676096,1760725845328,-500.0,0.0003041,5]
[391676098,1760725845338,-500.0,0.0003041,5]
[391676100,1760725845347,-500.0,0.0003041,5]
[391676103,1760725845357,-500.0,0.0003041,5]
[391676105,1760725845367,-1500.0,0.0003041,15]
[391676107,1760725845377,-1500.0,0.0003041,15]
[391676109,1760725845386,-1500.0,0.0003041,15]
[391676111,1760725845396,-1500.0,0.0003041,15]
[391676113,1760725845406,-1500.0,0.0003041,15]
[391676115,1760725845415,-1500.0,0.0003041,15]
[391676117,1760725845425,-1500.0,0.0003041,15]
[391676119,1760725845434,-278.62591344,0.0003041,15]
[391676121,1760725845444,-500.0,0.0003041,5]
[391676123,1760725845454,-500.0,0.0003041,5]
[391676125,1760725845463,-500.0,0.0003041,5]
[391676127,1760725845472,-500.0,0.0003041,5]
[391676129,1760725845482,-735.28,0.0003041,5]
[391676131,1760725845491,-500.0,0.0003041,5]
[391676133,1760725845501,-597.1313174,0.0003041,5]
[391676135,1760725845510,-500.0,0.0003041,5]
[391676137,1760725845520,-500.0,0.0003041,5]
[391676139,1760725845530,-515.98122804,0.0003041,5]
[391676141,1760725845539,-500.0,0.0003041,5]
[391676143,1760725845549,-500.0,0.0003041,5]
[391676145,1760725845558,-936.96,0.0003041,5]
[391676147,1760725845568,-519.52,0.0003041,5]
[391676149,1760725845578,-500.0,0.0003041,5]
[391676163,1760725845693,-316.71386815,0.0003041,5]
[391676165,1760725845702,-510.58414207,0.0003041,5]
[391676166,1760725845714,-500.0,0.0003041,5]
[391676168,1760725845723,-300.40955326,0.0003041,5]
[391676170,1760725845733,-500.0,0.0003041,5]
[391676173,1760725845743,-500.0,0.0003041,5]
[391676175,1760725845753,-500.0,0.0003041,5]
[391676177,1760725845762,-500.0,0.0003041,5]
[391676178,1760725845771,-222.43457557,0.0003041,5]
[391676180,1760725845781,-1000.0,0.0003041,2]
[391676183,1760725845791,-500.0,0.0003041,5]
[391676185,1760725845800,-539.7,0.0003041,5]
[391676187,1760725845809,-506.28532754,0.0003041,5]
[391676188,1760725845819,-500.0,0.0003041,5]
[391676191,1760725845829,-500.0,0.0003041,5]
[391676193,1760725845837,-500.0,0.0003041,5]
[391676195,1760725845847,-201.36510441,0.0003041,5]
[391676196,1760725845856,-500.0,0.0003041,5]
[391676198,1760725845865,-545.0,0.0003041,5]
[391676200,1760725845874,-504.77134636,0.0003041,5]
[391676202,1760725845883,-513.13469443,0.0003041,5]
[391676204,1760725845892,-500.0,0.0003041,5]
[391676206,1760725845901,-500.0,0.0003041,5]
[391676208,1760725845911,-703.96,0.0003041,5]
[391676211,1760725845920,-500.0,0.0003041,5]
[391676213,1760725845929,-500.0,0.0003041,5]
[391676215,1760725845941,-741.3,0.0003041,5]
[391676216,1760725845950,-500.0,0.0003041,5]
[391676219,1760725845959,-1917.86,0.0003041,2]
[391676221,1760725845969,-397.68581499,0.0003041,5]
[391676223,1760725845979,-490.99533357,0.0003041,5]
[391676224,1760725845988,-500.0,0.0003041,5]
[391676226,1760725845996,-500.0,0.0003041,5]
[391676229,1760725846007,-513.27542253,0.0003041,5]
[391676230,1760725846016,-500.0,0.0003041,5]
[391676232,1760725846025,-500.0,0.0003041,5]
[391676234,1760725846035,-500.0,0.0003041,5]
[391676236,1760725846044,-500.0,0.0003041,5]
[391676239,1760725846053,-500.0,0.0003041,5]
[391676242,1760725846063,-878.46,0.0003041,5]
[391676245,1760725846073,-549.74984679,0.0003041,5]
[391676247,1760725846081,-500.0,0.0003041,5]
[391676251,1760725846091,-500.0,0.0003041,5]
[391676253,1760725846100,-500.0,0.0003041,5]
[391676254,1760725846110,-705.81,0.0003041,5]
[391676256,1760725846121,-500.0,0.0003041,5]
[391676258,1760725846130,-500.0,0.0003041,5]
[391676260,1760725846140,-500.0,0.0003041,5]
[391676263,1760725846150,-500.0,0.0003041,5]
[391676265,1760725846159,-1000.0,0.0003041,2]
[391676267,1760725846168,-500.0,0.0003041,5]
[391676269,1760725846178,-500.0,0.0003041,5]
[391676271,1760725846190,-500.0,0.0003041,5]
[391676273,1760725846200,-508.28451569,0.0003041,5]
[391676275,1760725846210,-500.0,0.0003041,5]
[391676277,1760725846219,-502.86174435,0.0003041,5]
[391676279,1760725846231,-506.51620412,0.0003041,5]
[391676281,1760725846241,-500.0,0.0003041,5]
[391676283,1760725846251,-500.0,0.0003041,5]
[391676285,1760725846260,-500.0,0.0003041,5]
[391676287,1760725846270,-516.43,0.0003041,5]
[391676289,1760725846279,-500.0,0.0003041,5]
[391676291,1760725846289,-500.0,0.0003041,2]
[391676293,1760725846298,-500.0,0.0003041,5]
[391676295,1760725846310,-1000.0,0.0003041,120]
[391676297,1760725846320,-500.0,0.0003041,5]
[391676299,1760725846329,-567.33857646,0.0003041,5]
[391676301,1760725846338,-500.0,0.0003041,5]
[391676303,1760725846348,-830.69,0.0003041,5]
[391676305,1760725846357,-500.0,0.0003041,5]
[391676307,1760725846367,-500.0,0.0003041,5]
[391676309,1760725846378,-500.0,0.0003041,5]
[391676311,1760725846388,-500.0,0.0003041,5]
[391676313,1760725846397,-500.0,0.0003041,5]
[391676315,1760725846406,-500.0,0.0003041,5]
[391676317,1760725846415,-151.47153032,0.0003041,5]
[391676319,1760725846425,-1425.34,0.0003041,5]
[391676321,1760725846434,-430.92072943,0.0003041,5]
[391676323,1760725846445,-683.45,0.0003041,3]
[391676324,1760725846455,-500.0,0.0003041,5]
[391676326,1760725846466,-590.77,0.0003041,5]
[391676328,1760725846475,-500.0,0.0003041,5]
[391676330,1760725846485,-501.58843508,0.0003041,5]
[391676332,1760725846494,-500.0,0.0003041,5]
[391676334,1760725846503,-500.0,0.0003041,5]
[391676336,1760725846512,-500.0,0.0003041,5]
[391676338,1760725846523,-500.0,0.0003041,5]
[391676340,1760725846532,-622.67,0.0003041,5]
[391676343,1760725846542,-562.64,0.0003041,5]
[391676345,1760725846551,-1219.05,0.0003041,5]
[391676346,1760725846561,-716.27,0.0003041,5]
[391676349,1760725846570,-273.31186074,0.0003041,5]
[391676350,1760725846579,-500.0,0.0003041,5]
[391676352,1760725846588,-615.59871169,0.0003041,5]
[391676354,1760725846597,-500.0,0.0003041,5]
[391676356,1760725846606,-500.0,0.0003041,5]
[391676358,1760725846616,-151.5008036,0.0003041,5]
[391676360,1760725846625,-500.0,0.0003041,5]
[391676362,1760725846635,-500.0,0.0003041,5]
[391676364,1760725846645,-647.06,0.0003041,5]
[391676366,1760725846654,-500.79,0.0003041,5]
[391676368,1760725846664,-169.64574593,0.0003041,5]
[391676370,1760725846674,-500.0,0.0003041,5]
[391676372,1760725846683,-500.0,0.0003041,5]
[391676374,1760725846693,-500.0,0.0003041,5]
[391676376,1760725846703,-500.0,0.0003041,5]
[391676378,1760725846712,-500.0,0.0003041,5]
[391676380,1760725846721,-500.0,0.0003041,5]
[391676382,1760725846731,-503.81019988,0.0003041,5]
[391676384,1760725846740,-502.5935369,0.0003041,5]
[391676386,1760725846749,-505.09765862,0.0003041,5]
[391676388,1760725846757,-500.0,0.0003041,2]
[391676390,1760725846766,-505.06743852,0.0003041,5]
[391676392,1760725846775,-150.0,0.00030473,5]
[391676394,1760725846784,-501.21425316,0.00030473,5]
[391676396,1760725846793,-500.0,0.00030473,5]
[391676398,1760725846802,-500.0,0.00030473,5]
[391676400,1760725846811,-500.0,0.00030473,5]
[391676401,1760725846820,-500.0,0.00030473,5]
[391676403,1760725846829,-500.0,0.00030473,5]
[391676405,1760725846838,-500.66290724,0.00030473,5]
[391676408,1760725846848,-250.0,0.00030521,5]
[391676411,1760725846857,-199.0,0.00030532,18]
[391676413,1760725846867,-500.0,0.00030533,10]
[391676415,1760725846876,-500.0,0.00030547,2]
[391676417,1760725846885,-660.0,0.00030573,2]
[391676419,1760725846895,-12948.07,0.000306,7]
[391676421,1760725846904,-352.5,0.00030605,2]
[391676423,1760725846913,-240.748734,0.00030606,2]
[391676425,1760725846922,-151.591364,0.00030606,2]
[391676427,1760725846932,-164.834816,0.00030606,2]
[391676429,1760725846943,-154.724296,0.00030606,2]
[391676431,1760725846952,-158.478751,0.00030606,2]
[391676433,1760725846961,-500.0,0.00030684,5]
[391676435,1760725846971,-500.0,0.00030684,5]
[391676437,1760725846981,-500.0,0.00030684,5]
[391676439,1760725846990,-500.0,0.00030684,5]
[391676441,1760725846999,-500.0,0.00030684,5]
[391676443,1760725847009,-500.0,0.00030684,5]
[391676445,1760725847018,-500.0,0.00030684,5]
[391676446,1760725847027,-500.0,0.00030684,5]
[391676448,1760725847036,-653.4,0.00030684,5]
[391676450,1760725847045,-500.0,0.00030684,5]
[391676452,1760725847055,-500.0,0.00030684,5]
[391676454,1760725847064,-372.20165481,0.00030684,5]
[391676456,1760725847073,-500.0,0.00030684,5]
[391676458,1760725847082,-500.0,0.00030684,2]
[391676460,1760725847091,-226.96284842,0.00030684,5]
[391676462,1760725847100,-500.0,0.00030684,5]
[391676464,1760725847109,-500.0,0.00030684,5]
[391676466,1760725847119,-500.0,0.00030684,5]
[391676468,1760725847128,-500.0,0.00030684,5]
[391676470,1760725847137,-500.0,0.00030684,5]
[391676472,1760725847146,-500.0,0.00030684,5]
[391676474,1760725847155,-500.0,0.00030684,5]
[391676476,1760725847164,-500.0,0.00030684,5]
[391676478,1760725847173,-500.0,0.00030684,5]
[391676480,1760725847182,-500.0,0.00030684,5]
[391676482,1760725847192,-500.0,0.00030684,5]
[391676484,1760725847201,-500.0,0.00030684,5]
[391676485,1760725847211,-500.0,0.00030684,5]
[391676487,1760725847221,-500.0,0.00030684,5]
[391676490,1760725847231,-500.0,0.00030684,5]
[391676492,1760725847245,-500.0,0.00030684,5]
[391676494,1760725847254,-735.28,0.00030684,5]
[391676495,1760725847263,-500.0,0.00030684,5]
[391676497,1760725847273,-500.0,0.00030684,5]
[391676499,1760725847282,-500.0,0.00030684,5]
[391676501,1760725847292,-500.0,0.00030684,5]
[391676503,1760725847301,-516.41584702,0.00030684,5]
[391676505,1760725847312,-936.96,0.00030684,5]
[391676507,1760725847322,-519.52,0.00030684,5]
[391676509,1760725847331,-500.0,0.00030684,5]
[391676511,1760725847341,-500.0,0.00030684,5]
[391676513,1760725847350,-500.0,0.00030684,5]
[391676515,1760725847360,-500.0,0.00030684,5]
[391676517,1760725847369,-500.0,0.00030684,5]
[391676518,1760725847378,-500.0,0.00030684,5]
[391676520,1760725847387,-1000.0,0.00030684,2]
[391676522,1760725847396,-500.0,0.00030684,5]
[391676524,1760725847406,-539.7,0.00030684,5]
[391676526,1760725847415,-500.0,0.00030684,5]
[391676528,1760725847425,-500.0,0.00030684,5]
[391676530,1760725847434,-500.0,0.00030684,5]
[391676532,1760725847443,-500.0,0.00030684,5]
[391676534,1760725847452,-545.0,0.00030684,5]
[391676536,1760725847462,-500.0,0.00030684,5]
[391676538,1760725847471,-500.0,0.00030684,5]
[391676540,1760725847481,-703.96,0.00030684,5]